bitfinex-derivatives/quotes_SOLF0:USTF0_20240920
["timestamp","ask_amount","ask_price","bid_price","bid_amount"]
[1726845169298,3.3867,147.62,147.6,3.3869]
[1726845169492,3.3861,147.64,147.58,1.3452]
[1726845169699,13.01,147.66,147.61,3.3866]
[1726845170407,13.01,147.66,147.6,3.3869]
[1726845170592,13.01,147.66,147.58,1.3452]
[1726845170899,3.3862,147.64,147.58,1.3452]
[1726845171103,3.3862,147.64,147.61,3.3866]
[1726845171502,13.01,147.66,147.58,1.3452]
[1726845171691,13.01,147.64,147.58,1.3452]
[1726845172002,3.3866,147.62,147.58,1.3452]
[1726845172515,13.01,147.64,147.58,1.3452]
[1726845173013,3.3867,147.62,147.59,3.3872]
[1726845174412,3.3868,147.61,147.59,3.3872]
[1726845175606,3.3866,147.62,147.59,3.3872]
[1726845175802,3.44670455,147.68,147.58,1.3452]
[1726845175803,13.01,147.68,147.58,1.3452]
[1726845176296,13.01,147.7,147.59,14.3266]
[1726845176606,3.385,147.69,147.61,13.01]
[1726845176812,13.01,147.72,147.65,3.3856]
[1726845177108,13.01,147.72,147.61,13.01]
[1726845177313,3.3851,147.69,147.66,3.3855]
[1726845177599,3.3851,147.69,147.66,3.36788102]
[1726845177909,3.3852,147.68,147.61,13.01]
[1726845178098,3.3852,147.68,147.59,2.6008]
[1726845178099,13.01,147.72,147.63,13.01]
[1726845178293,13.01,147.72,147.61,13.01]
[1726845178905,3.3857,147.66,147.63,3.3861]
[1726845179101,13.01,147.7,147.59,2.6008]
[1726845179292,13.01,147.68,147.59,2.6008]
[1726845180203,3.386,147.65,147.62,3.3864]
[1726845180501,13.01,147.68,147.59,2.6008]
[1726845180910,13.01,147.68,147.61,3.3866]
[1726845181694,13.01,147.68,147.62,3.3864]
[1726845182308,3.3859,147.65,147.62,3.3864]
[1726845182710,13.01,147.68,147.61,3.3866]
[1726845183207,3.386,147.65,147.61,3.3866]
[1726845183405,13.01,147.68,147.61,3.3866]
[1726845184806,3.3861,147.64,147.62,3.3865]
[1726845185002,3.3861,147.64,147.59,2.6008]
[1726845185412,3.3861,147.64,147.61,3.3867]
[1726845185607,3.3863,147.63,147.61,3.3867]
[1726845185811,3.3863,147.63,147.6,3.3869]
[1726845186008,13.01,147.66,147.59,1.3166]
[1726845186213,13.01,147.64,147.58,1.3452]
[1726845186508,20.33,147.67,147.54,136.7628]
[1726845186710,13.01,147.61,147.54,1.2828]
[1726845187008,13.01,147.61,147.56,3.3878]
[1726845187403,23.67801554,147.67,147.53,3.3884]
[1726845187404,13.01,147.6,147.53,3.3884]
[1726845187809,13.01,147.6,147.51,1.3354]
[1726845188012,13.01,147.57,147.51,1.3354]
[1726845188313,3.3893,147.5,147.46,135.48]
[1726845188513,3.37694258,147.59,147.46,135.48]
[1726845188514,13.01,147.51,147.46,135.48]
[1726845189012,3.3898,147.48,147.45,3.35695065]
[1726845189215,3.3898,147.48,147.44,3.3906]
[1726845189418,3.3896,147.49,147.43,4.1132]
[1726845189604,3.3896,147.49,147.46,3.3902]
[1726845190119,3.3893,147.5,147.46,3.3902]
[1726845190323,20.84,147.56,147.43,7.55520108]
[1726845190713,3.37694258,147.59,147.51,3.389]
[1726845190714,3.3883,147.55,147.51,3.389]
[1726845191019,6.7717,147.66,147.51,3.42318772]
[1726845191020,20.84,147.62,147.51,3.42318772]
[1726845191218,3.3879,147.57,147.54,3.3883]
[1726845191805,20.84,147.62,147.52,1.4098]
[1726845192311,3.3877,147.57,147.53,3.3884]
[1726845192518,20.84,147.62,147.52,1.4098]
[1726845193109,20.84,147.59,147.52,1.4098]
[1726845193419,3.3882,147.55,147.5,3.3891]
[1726845193618,20.84,147.56,147.46,1.4098]
[1726845194119,24.26134949,147.56,147.46,1.4098]
[1726845194820,20.84,147.56,147.5,3.3892]
[1726845195316,3.3885,147.54,147.5,3.3892]
[1726845196016,20.84,147.56,147.48,3.3896]
[1726845196425,20.84,147.51,147.43,2.7003]
[1726845196722,20.84,147.51,147.43,1.3768]
[1726845197020,3.3899,147.48,147.44,3.3905]
[1726845197421,20.84,147.51,147.43,1.3768]
[1726845197625,24.2917147,147.53,147.46,3.3901]
[1726845197920,20.84,147.53,147.46,3.3901]
[1726845198121,3.3894,147.5,147.46,3.3901]
[1726845198914,44.49554413,147.53,147.44,1.3345]
[1726845199115,41.17,147.51,147.42,3.33255369]
[1726845199430,3.3904,147.46,147.42,3.3909]
[1726845199623,3.3904,147.46,147.42,6.85075473]
[1726845199926,3.3914,147.41,147.37,2.6613]
[1726845200122,20.84,147.43,147.37,2.6613]
[1726845200320,20.84,147.43,147.37,1.3345]
[1726845200633,3.3916,147.4,147.33,135.56]
[1726845200925,44.57117864,147.43,147.33,136.9122]
[1726845201317,3.3917,147.4,147.33,136.9122]
[1726845201520,44.57117864,147.43,147.33,136.9122]
[1726845201833,20.84,147.43,147.33,136.9122]
[1726845203126,3.3913,147.42,147.38,3.3919]
[1726845203314,20.84,147.43,147.33,136.9122]
[1726845203517,24.2311,147.43,147.38,3.3919]
[1726845203714,24.2311,147.43,147.33,136.9122]
[1726845204126,3.3913,147.42,147.37,3.3921]
[1726845204422,20.84,147.43,147.33,136.9122]
[1726845204725,20.84,147.43,147.37,3.3921]
[1726845204726,3.3915,147.41,147.37,3.3921]
[1726845204923,20.84,147.43,147.37,3.3921]
[1726845205124,20.84,147.43,147.33,136.9122]
[1726845205815,3.3918,147.39,147.33,136.9122]
[1726845206015,20.84,147.4,147.33,136.9122]
[1726845206416,20.84,147.4,147.33,1.3522]
[1726845206926,24.19528862,147.4,147.34,3.3928]
[1726845207220,24.19528862,147.4,147.33,1.3522]
[1726845207221,3.3925,147.36,147.33,1.3522]
[1726845208524,20.84,147.37,147.25,1.3084]
[1726845208819,20.84,147.37,147.26,2.8239]
[1726845209022,20.84,147.37,147.3,3.3937]
[1726845209420,20.84,147.35,147.26,6.21074625]
[1726845209615,20.84,147.35,147.3,3.3938]
[1726845210218,3.3932,147.33,147.29,3.394]
[1726845210619,3.3932,147.33,147.26,6.21074625]
[1726845210822,20.84,147.37,147.26,6.21074625]
[1726845211722,3.3926,147.36,147.32,3.3932]
[1726845211919,3.3926,147.36,147.26,27.05074625]
[1726845212219,24.18805377,147.4,147.26,27.05074625]
[1726845212426,3.3924,147.37,147.33,3.393]
[1726845212630,20.84,147.4,147.26,27.05074625]
[1726845212823,20.84,147.42,147.36,3.3925]
[1726845213033,20.84,147.42,147.28,20.84]
[1726845214235,3.3919,147.39,147.28,20.84]
[1726845214830,3.3919,147.39,147.35,3.3925]
[1726845215036,3.3919,147.39,147.28,20.84]
[1726845215235,3.3921,147.38,147.28,20.84]
[1726845215435,3.3921,147.38,147.35,3.3926]
[1726845215728,20.84,147.42,147.28,20.84]
[1726845215930,20.84,147.45,147.31,20.84]
[1726845216141,20.84,147.45,147.32,2.6647]
[1726845216530,20.84,147.45,147.33,1.3887]
[1726845217136,3.3915,147.41,147.37,3.3921]
[1726845217528,20.84,147.45,147.33,1.3887]
[1726845217835,20.84,147.42,147.34,3.4672399]
[1726845218139,20.84,147.42,147.33,1.3887]
[1726845218332,3.392,147.39,147.35,3.3926]
[1726845218530,20.84,147.42,147.33,1.3887]
[1726845218939,20.84,147.39,147.33,1.3887]
[1726845219243,20.84,147.42,147.33,1.3887]
[1726845219839,6.7805,147.46,147.33,1.3887]
[1726845219840,20.84,147.39,147.33,1.3887]
[1726845221239,3.3925,147.36,147.33,4.7819]
[1726845221635,3.3925,147.36,147.33,1.3887]
[1726845222737,3.3927,147.35,147.33,1.3887]
[1726845223644,3.3926,147.36,147.33,1.3887]
[1726845223937,20.84,147.39,147.33,1.3887]
[1726845224536,20.84,147.42,147.33,1.3887]
[1726845224838,20.84,147.42,147.34,3.46570183]
[1726845225038,20.84,147.42,147.33,1.3887]
[1726845225444,20.84,147.45,147.34,1.3874]
[1726845225643,20.84,147.45,147.34,4.70784915]
[1726845226048,20.84,147.45,147.39,3.3918]
[1726845226233,20.84,147.45,147.34,4.70784915]
[1726845226741,3.3911,147.42,147.34,4.70784915]
[1726845227140,20.84,147.45,147.34,4.70784915]
[1726845227348,20.84,147.47,147.34,4.70784915]
[1726845227840,3.3909,147.44,147.4,3.3915]
[1726845228041,20.84,147.47,147.34,25.54784915]
[1726845228947,20.84,147.47,147.39,3.3917]
[1726845228948,3.3911,147.43,147.39,3.3917]
[1726845229248,20.84,147.47,147.34,25.54784915]
[1726845230150,20.84,147.5,147.36,20.84]
[1726845230343,3.3899,147.48,147.36,20.84]
[1726845230640,20.84,147.5,147.36,20.84]
[1726845230839,3.39,147.47,147.44,3.3905]
[1726845231239,3.39,147.47,147.45,1.3596]
[1726845231439,20.84,147.52,147.45,1.3596]
[1726845231640,24.19189532,147.55,147.45,1.3596]
[1726845232051,3.3898,147.48,147.45,4.7499]
[1726845232237,20.84,147.52,147.45,1.3596]
[1726845232444,24.2215059,147.52,147.45,1.3596]
[1726845232851,3.3899,147.48,147.45,1.3596]
[1726845233443,20.84,147.52,147.45,1.3596]
[1726845234462,3.3897,147.49,147.45,4.7499]
[1726845234639,20.84,147.52,147.45,1.3596]
[1726845235361,3.3899,147.48,147.45,1.3596]
[1726845235851,3.3899,147.48,147.45,4.7499]
[1726845237057,3.3899,147.48,147.45,1.3596]
[1726845237267,3.3895,147.49,147.45,1.3596]
[1726845237453,3.3895,147.49,147.45,4.7499]
[1726845237958,3.3895,147.49,147.46,3.3902]
[1726845238665,3.3895,147.49,147.45,4.7499]
[1726845239853,3.3898,147.48,147.45,4.7499]
[1726845240165,41.17,147.5,147.37,135.68]
[1726845240356,20.84,147.47,147.38,4.1198]
[1726845240658,20.84,147.45,147.38,4.1198]
[1726845241054,20.84,147.45,147.39,3.3918]
[1726845241458,20.84,147.47,147.41,3.3913]
[1726845241657,20.84,147.5,147.38,4.1198]
[1726845241967,3.3902,147.46,147.43,3.3908]
[1726845242257,20.84,147.5,147.42,3.38703187]
[1726845242461,3.3899,147.48,147.44,3.3905]
[1726845242659,20.84,147.5,147.44,3.3905]
[1726845242957,20.84,147.5,147.38,4.1198]
[1726845243159,3.39,147.47,147.44,3.3905]
[1726845243850,3.39,147.47,147.44,4.6991]
[1726845244051,3.39,147.47,147.44,1.3086]
[1726845245157,3.39,147.47,147.38,2.7864]
[1726845245158,20.84,147.47,147.38,2.7864]
[1726845245367,20.84,147.47,147.39,1.3086]
[1726845246359,3.3909,147.43,147.4,3.3915]
[1726845246660,20.84,147.47,147.4,3.3915]
[1726845246864,20.84,147.44,147.39,1.3086]
[1726845247269,3.3912,147.42,147.39,1.3086]
[1726845248262,3.3914,147.41,147.39,1.3086]
[1726845248663,20.84,147.44,147.39,1.3086]
[1726845249589,20.84,147.42,147.35,135.66]
[1726845250165,3.3917,147.4,147.36,3.3924]
[1726845250372,20.84,147.45,147.35,135.66]
[1726845251776,20.84,147.45,147.37,3.3921]
[1726845252371,3.3917,147.4,147.36,3.3924]
[1726845253068,20.84,147.45,147.35,139.0525]
[1726845253274,20.84,147.42,147.35,135.66]
[1726845253467,3.3916,147.4,147.34,3.37382286]
[1726845253669,3.3916,147.4,147.36,3.3923]
[1726845253973,3.3916,147.4,147.36,6.75323711]
[1726845255974,20.84,147.45,147.36,3.36093711]
[1726845256165,20.84,147.45,147.33,2.7178]
[1726845256578,3.3912,147.42,147.38,3.3919]
[1726845256769,3.3912,147.42,147.38,6.85835737]
[1726845256965,3.3912,147.42,147.33,2.7178]
[1726845256966,3.3915,147.41,147.33,2.7178]
[1726845257178,3.3915,147.41,147.37,3.3921]
[1726845257767,3.3913,147.42,147.36,3.41760058]
[1726845257983,20.84,147.45,147.33,2.7178]
[1726845259079,3.3914,147.41,147.38,3.3919]
[1726845259474,20.84,147.45,147.38,3.3919]
[1726845259678,3.3915,147.41,147.38,3.3919]
[1726845262684,3.3912,147.42,147.39,3.3918]
[1726845262870,13.02,147.44,147.33,15.7378]
[1726845263374,3.3911,147.42,147.39,3.3917]
[1726845264086,13.02,147.44,147.39,1.2831]
[1726845264679,3.3911,147.42,147.39,4.6748]
[1726845265678,13.02,147.44,147.39,1.2831]
[1726845265885,13.02,147.48,147.39,2.6981]
[1726845266087,13.02,147.48,147.4,1.4048]
[1726845266784,13.02,147.5,147.4,1.4048]
[1726845267179,3.3903,147.46,147.42,3.391]
[1726845267485,13.02,147.46,147.4,1.4048]
[1726845267683,3.391,147.43,147.4,1.4048]
[1726845267982,13.02,147.44,147.39,6.0897]
[1726845268181,13.02,147.44,147.39,2.6981]
[1726845268883,13.02,147.42,147.39,1.2831]
[1726845269579,3.3916,147.4,147.39,1.2831]
[1726845270589,20.85,147.45,147.39,1.2831]
[1726845271195,3.3913,147.42,147.39,1.2831]
[1726845271688,20.85,147.45,147.39,1.2831]
[1726845271985,3.3913,147.42,147.39,1.2831]
[1726845272293,20.85,147.45,147.39,1.2831]
[1726845272485,3.3915,147.41,147.39,1.2831]
[1726845272878,20.85,147.45,147.39,1.2831]
[1726845272879,3.3916,147.4,147.39,1.2831]
[1726845273077,20.85,147.4,147.34,1.3195]
[1726845273489,3.3924,147.37,147.34,1.3195]
[1726845274793,3.3924,147.37,147.34,4.7124]
[1726845274988,3.3921,147.38,147.34,4.7124]
[1726845275189,20.85,147.4,147.35,3.3926]
[1726845275487,20.85,147.4,147.34,1.3195]
[1726845276695,3.34182607,147.44,147.3,2.7726]
[1726845276696,20.85,147.38,147.3,2.7726]
[1726845277194,3.3929,147.35,147.31,3.3935]
[1726845277587,20.85,147.38,147.31,3.3935]
[1726845277894,20.85,147.35,147.3,1.4093]
[1726845278392,20.85,147.37,147.3,4.8031]
[1726845278583,20.85,147.4,147.3,1.4093]
[1726845278990,3.3926,147.36,147.3,1.4093]
[1726845279190,20.85,147.4,147.3,1.4093]
[1726845279494,3.3929,147.35,147.31,3.3935]
[1726845279795,41.18,147.4,147.3,1.4093]
[1726845279993,3.3928,147.35,147.32,3.3933]
[1726845280193,20.85,147.35,147.3,1.4093]
[1726845280997,3.31466816,147.34,147.3,1.4093]
[1726845281297,20.85,147.35,147.3,1.4093]
[1726845281696,3.3936,147.32,147.3,1.4093]
[1726845282090,20.85,147.35,147.3,1.4093]
[1726845282398,3.3934,147.33,147.3,1.4093]
[1726845283394,20.85,147.35,147.3,1.4093]
[1726845286199,20.85,147.35,147.27,1.4189]
[1726845286503,3.3938,147.31,147.27,2.8036]
[1726845286690,3.3938,147.31,147.27,6.198]
[1726845287595,3.3939,147.3,147.27,6.198]
[1726845287993,20.85,147.35,147.28,3.3943]
[1726845288195,3.3938,147.31,147.28,3.3943]
[1726845288388,3.3938,147.31,147.27,2.8036]
[1726845288593,3.3938,147.31,147.27,6.1981]
[1726845289201,3.3938,147.31,147.28,3.3943]
[1726845289599,3.3935,147.32,147.27,2.8036]
[1726845289804,20.85,147.35,147.28,3.3941]
[1726845290003,13.04,147.33,147.28,3.3941]
[1726845290203,3.3936,147.32,147.28,3.3941]
[1726845290706,3.3937,147.31,147.28,3.3941]
[1726845295704,13.04,147.33,147.28,3.3941]
[1726845296005,13.04,147.33,147.27,2.8036]
[1726845296610,13.04,147.35,147.27,2.8036]
[1726845296910,13.04,147.35,147.3,3.3937]
[1726845297314,3.3931,147.34,147.31,3.3936]
[1726845298007,13.04,147.35,147.31,3.3936]
[1726845298204,16.4329,147.35,147.27,2.8036]
[1726845299110,3.393,147.34,147.27,2.8036]
[1726845299304,3.393,147.34,147.3,3.3937]
[1726845300106,13.04,147.35,147.31,3.3935]
[1726845300400,3.33401843,147.42,147.31,3.41129397]
[1726845300618,20.33,147.47,147.34,3.3929]
[1726845300909,13.04,147.39,147.35,1.3384]
[1726845303317,13.04,147.37,147.27,14.4589]
[1726845303610,3.3931,147.34,147.3,3.3938]
[1726845303820,13.04,147.34,147.28,2.7498]
[1726845304325,3.3933,147.33,147.29,3.394]
[1726845304820,3.3934,147.32,147.28,6.144]
[1726845305407,13.04,147.34,147.29,3.3941]
[1726845305618,13.04,147.34,147.28,2.7498]
[1726845306106,3.3936,147.32,147.28,6.144]
[1726845306618,13.04,147.35,147.29,3.3939]
[1726845306818,13.04,147.35,147.28,2.7498]
[1726845307023,13.04,147.3,147.28,1.3384]
[1726845307422,13.04,147.3,147.23,3.35075398]
[1726845307617,13.04,147.28,147.24,1.3746]
[1726845307810,13.04,147.26,147.24,1.3746]
[1726845308118,3.3952,147.25,147.22,1.3479]
[1726845308318,13.04,147.26,147.2,135.76]
[1726845308517,13.04,147.23,147.15,4.0851]
[1726845308720,13.04,147.21,147.15,4.0851]
[1726845309224,13.04,147.21,147.17,3.3967]
[1726845309814,16.436,147.21,147.17,3.3967]
[1726845310320,13.04,147.21,147.17,3.3967]
[1726845310626,16.436,147.21,147.17,3.3967]
[1726845310916,3.3965,147.19,147.16,3.397]
[1726845311118,33.37,147.28,147.06,3.40948906]
[1726845311119,13.04,147.17,147.06,3.40948906]
[1726845311320,13.04,147.17,147.0,201.0]
[1726845311321,13.04,147.14,147.09,1.4176]
[1726845311513,13.04,147.12,147.09,1.4176]
[1726845312322,13.04,147.1,147.02,3.41974266]
[1726845312521,13.04,147.12,147.03,2.8302]
[1726845312727,3.3983,147.11,147.03,2.8302]
[1726845313515,16.4387,147.1,147.06,3.3992]
[1726845313718,13.04,147.1,147.03,2.8302]
[1726845313917,13.04,147.08,147.03,2.8302]
[1726845314123,20.9,147.09,147.03,2.8302]
[1726845314522,20.9,147.06,146.94,20.9]
[1726845314723,20.9,147.06,146.91,430.0]
[1726845314724,20.9,147.06,146.95,4.1207]
[1726845315018,139.20908541,147.19,146.97,20.9]
[1726845315225,20.9,147.12,146.97,20.9]
[1726845315526,3.3988,147.09,147.05,3.3996]
[1726845315727,20.9,147.12,147.04,3.31997511]
[1726845316026,20.9,147.12,146.97,20.9]
[1726845316217,20.33,147.18,146.97,20.9]
[1726845316218,20.9,147.1,146.97,20.9]
[1726845316418,20.33,147.18,146.97,20.9]
[1726845316419,20.9,147.12,146.97,20.9]
[1726845316616,3.399,147.08,147.04,3.3997]
[1726845316828,3.399,147.08,147.03,3.43285974]
[1726845317019,3.399,147.08,146.97,20.9]
[1726845317918,3.399,147.08,147.04,3.3997]
[1726845318123,3.3988,147.09,147.04,3.3997]
[1726845318527,3.3988,147.09,147.05,3.3996]
[1726845318828,3.3985,147.1,147.03,3.40769813]
[1726845319030,20.9,147.12,147.06,3.3992]
[1726845319329,3.3978,147.13,147.04,4.88124153]
[1726845319520,20.9,147.18,147.05,1.4127]
[1726845319725,20.9,147.15,147.05,6.15307632]
[1726845319926,3.398,147.12,147.05,6.15307632]
[1726845320229,24.34646061,147.15,147.05,2.7736]
[1726845320419,24.34646061,147.15,147.04,1.4205]
[1726845320420,20.9,147.12,147.04,1.4205]
[1726845320827,20.9,147.09,146.98,2.7387]
[1726845321023,3.3996,147.06,146.99,1.4205]
[1726845321224,3.3996,147.06,147.02,3.4003]
[1726845321529,20.9,147.09,146.99,1.4205]
[1726845321732,3.3992,147.07,147.02,3.4003]
[1726845321921,20.9,147.09,146.99,1.4205]
[1726845322437,3.3991,147.08,147.03,3.4]
[1726845322627,20.9,147.09,147.03,3.4]
[1726845322628,20.9,147.09,147.03,3.42173041]
[1726845322830,20.9,147.12,146.99,1.4205]
[1726845323130,3.3983,147.11,147.06,3.3993]
[1726845323524,3.3983,147.11,147.07,3.3991]
[1726845323723,3.43613254,147.14,146.99,1.4205]
[1726845323724,20.9,147.15,147.0,20.9]
[1726845324025,20.9,147.18,147.03,20.9]
[1726845324222,20.9,147.18,147.03,24.26575761]
[1726845324424,3.3974,147.15,147.03,24.26575761]
[1726845324635,3.3974,147.15,147.1,3.3983]
[1726845324830,20.9,147.18,147.03,24.26575761]
[1726845325122,20.9,147.2,147.06,20.9]
[1726845325318,24.30349489,147.2,147.07,4.0339]
[1726845325533,3.3972,147.16,147.07,4.0339]
[1726845325732,20.9,147.19,147.07,4.0339]
[1726845326117,20.9,147.19,147.12,3.3978]
[1726845326118,3.397,147.17,147.12,3.3978]
[1726845326522,20.9,147.19,147.12,3.3978]
[1726845326727,3.397,147.17,147.07,4.0339]
[1726845327032,20.9,147.22,147.08,20.9]
[1726845327229,3.3963,147.2,147.08,20.9]
[1726845327428,20.9,147.22,147.16,3.3971]
[1726845327628,20.9,147.22,147.08,20.9]
[1726845328040,41.23,147.25,147.08,20.9]
[1726845328332,3.3965,147.19,147.08,20.9]
[1726845328519,135.96,147.33,147.14,20.9]
[1726845328721,20.9,147.3,147.17,20.9]
[1726845328921,3.3945,147.28,147.24,3.3951]
[1726845329123,20.9,147.33,147.24,3.3951]
[1726845329332,20.9,147.33,147.25,3.395]
[1726845329528,20.9,147.33,147.17,20.9]
[1726845329835,20.9,147.27,147.19,3.3964]
[1726845330025,3.3957,147.23,147.15,3.9286]
[1726845330231,20.9,147.27,147.15,7.34514575]
[1726845330531,3.3953,147.24,147.15,7.34514575]
[1726845330738,20.9,147.27,147.15,7.34514575]
[1726845331235,20.9,147.25,147.18,3.3965]
[1726845331528,20.9,147.25,147.15,7.34514575]
[1726845331827,20.9,147.25,147.15,3.9286]
[1726845332423,20.9,147.22,147.15,2.6469]
[1726845332623,20.9,147.19,147.11,135.96]
[1726845332825,20.9,147.16,147.1,4.0224]
[1726845333026,20.9,147.19,147.1,4.0224]
[1726845333225,3.48207144,147.18,147.1,4.0224]
[1726845333437,3.48207144,147.18,147.1,2.6175]
[1726845333827,20.9,147.19,147.1,2.6175]
[1726845334328,3.3971,147.16,147.1,2.6175]
[1726845334528,20.9,147.19,147.1,2.6175]
[1726845335628,3.3974,147.15,147.1,2.6175]
[1726845336329,3.3974,147.15,147.1,4.7065]
[1726845336530,20.9,147.14,147.05,2.7524]
[1726845336727,20.9,147.14,147.06,3.3994]
[1726845337040,3.3984,147.11,147.05,2.7524]
[1726845337237,20.9,147.11,147.05,2.7524]
[1726845338041,20.9,147.14,147.05,2.7524]
[1726845338428,20.9,147.14,147.06,3.3994]
[1726845338631,20.9,147.14,147.05,2.7524]
[1726845338837,20.9,147.11,147.05,2.7524]
[1726845339135,3.3988,147.09,147.05,2.7524]
[1726845339331,20.9,147.11,147.05,1.3475]
[1726845340437,20.9,147.11,147.05,4.7471]
[1726845340641,20.9,147.11,147.05,1.3475]
[1726845340838,3.3989,147.09,147.05,4.747]
[1726845341143,20.9,147.14,147.05,1.3475]
[1726845341335,3.3984,147.11,147.06,3.3992]
[1726845341533,20.9,147.14,147.05,1.3475]
[1726845342743,20.9,147.11,147.05,1.3475]
[1726845343228,3.3986,147.1,147.05,4.747]
[1726845343426,20.9,147.11,147.05,4.747]
[1726845343630,20.9,147.11,147.05,1.3475]
[1726845345135,20.9,147.14,147.05,1.3475]
[1726845346037,20.9,147.14,147.1,3.3984]
[1726845346038,3.3976,147.14,147.1,3.3984]
[1726845346239,20.9,147.16,147.05,1.3475]
[1726845346634,3.3979,147.13,147.05,1.3475]
[1726845346945,20.9,147.16,147.05,1.3475]
[1726845347644,3.3979,147.13,147.05,1.3475]
[1726845347845,20.9,147.16,147.05,1.3475]
[1726845348145,20.9,147.19,147.08,3.3988]
[1726845348338,20.9,147.19,147.05,1.3475]
[1726845348339,20.9,147.14,147.05,1.3475]
[1726845348837,3.3986,147.1,147.06,3.3992]
[1726845349044,3.3986,147.1,147.03,1.3783]
[1726845349241,20.9,147.12,147.03,1.3783]
[1726845349746,3.3989,147.09,147.05,3.3996]
[1726845350139,20.9,147.12,147.03,1.3783]
[1726845350354,3.3989,147.09,147.03,1.3783]
[1726845350646,20.9,147.12,147.03,1.3783]
[1726845350848,20.9,147.1,147.03,1.3783]
[1726845351445,3.3993,147.07,147.03,4.7783]
[1726845351643,20.9,147.1,147.03,1.3783]
[1726845352343,3.3992,147.08,147.03,4.7783]
[1726845352546,20.9,147.1,147.03,1.3783]
[1726845352842,3.3992,147.08,147.03,1.3783]
[1726845353039,3.3992,147.08,147.03,4.7783]
[1726845353441,3.3992,147.08,147.03,1.3783]
[1726845354348,3.3992,147.07,147.03,1.3783]
[1726845354660,20.9,147.1,147.03,1.3783]
[1726845354946,20.9,147.07,147.0,2.8089]
[1726845355243,24.2993,147.07,147.0,2.8089]
[1726845355652,20.9,147.07,147.0,2.8089]
[1726845355849,3.3994,147.06,147.02,3.4002]
[1726845356054,20.9,147.07,147.0,2.8089]
[1726845356544,3.3994,147.06,147.02,3.4002]
[1726845356748,20.9,147.07,147.0,2.8089]
[1726845357144,20.9,147.07,147.01,3.4004]
[1726845357352,20.9,147.07,147.0,2.8089]
[1726845357848,20.9,147.07,147.0,1.3979]
[1726845358443,20.9,147.1,147.0,1.3979]
[1726845358639,20.9,147.12,147.0,1.3979]
[1726845358843,3.3983,147.11,147.07,3.399]
[1726845359348,20.9,147.12,147.0,1.3979]
[1726845360246,24.32875987,147.12,147.0,1.3979]
[1726845360441,20.9,147.12,147.0,1.3979]
[1726845360639,44.68382896,147.12,147.0,1.3979]
[1726845360854,20.9,147.1,147.0,1.3979]
[1726845361150,41.32,147.1,147.01,3.4005]
[1726845361354,41.32,147.1,147.0,1.3979]
[1726845361564,20.9,147.07,147.0,1.3979]
[1726845361740,3.4,147.04,147.0,1.3979]
[1726845362750,3.4,147.04,147.01,3.4004]
[1726845363049,20.9,147.12,147.0,1.3979]
[1726845363351,3.3985,147.1,147.0,1.3979]